[Event "44th Chess Olympiad Open 2022"]
[Site "Chennai"]
[Date "2022.08.02"]
[Round "5.74"]
[White "Taleka, Jed Selu"]
[Black "Shaker, Musab"]
[Result "0-1"]
[WhiteElo "1672"]
[BlackElo "1705"]
[Annotator "NA RC"]
[PlyCount "186"]
[EventDate "2022.??.??"]
[TimeControl "60"]

1. d4 {[%emt 0:00:30]} Nf6 {[%emt 0:00:05]} 2. Nc3 {[%emt 0:00:09]} d5 {
[%emt 0:00:14]} 3. Bf4 {[%emt 0:00:11]} a6 {[%emt 0:02:07]} 4. e3 {[%emt 0:00:
00]} Bf5 {[%emt 0:01:00]} 5. Nf3 {[%emt 0:00:24]} e6 {[%emt 0:06:05]} 6. a3 {
[%emt 0:00:27]} c5 {[%emt 0:00:58]} 7. Bd3 {[%emt 0:00:31]} Bg4 {[%emt 0:04:37]
} 8. dxc5 {[%emt 0:00:36]} Bxc5 {[%emt 0:00:52]} 9. h3 {[%emt 0:00:18]} Bh5 {
[%emt 0:00:45]} 10. Be2 {[%emt 0:01:47]} Nc6 {[%emt 0:01:49]} 11. O-O {[%emt 0:
00:00]} O-O {[%emt 0:04:11]} 12. Nd4 {[%emt 0:00:07]} Bg6 {[%emt 0:04:37]} 13.
Nxc6 {[%emt 0:00:16]} bxc6 {[%emt 0:05:50]} 14. Bg5 {[%emt 0:01:52]} a5 {
[%emt 0:02:00]} 15. Bd3 {[%emt 0:00:23]} e5 {[%emt 0:07:53]} 16. Bxg6 {[%emt 0:
00:00]} hxg6 {[%emt 0:00:21]} 17. Qe2 {[%emt 0:00:38]} Rb8 {[%emt 0:01:09]} 18.
Na4 {[%emt 0:00:19]} Be7 {[%emt 0:07:26]} 19. Bxf6 {[%emt 0:00:15]} Bxf6 {
[%emt 0:01:10]} 20. Rad1 {[%emt 0:00:17]} e4 {[%emt 0:06:11]} 21. c3 {[%emt 0:
00:00]} Qd6 {[%emt 0:06:08]} 22. Qc2 {[%emt 0:00:12]} Qe7 {[%emt 0:11:58]} 23.
Rd2 {[%emt 0:01:26]} Rb7 {[%emt 0:00:45]} 24. Rfd1 {[%emt 0:00:58]} Rfb8 {
[%emt 0:01:36]} 25. b4 {[%emt 0:01:10]} Ra7 {[%emt 0:02:21]} 26. Nc5 {[%emt 0:
00:00]} axb4 {[%emt 0:03:33]} 27. axb4 {[%emt 0:00:22]} Ra3 {[%emt 0:01:03]}
28. Nb3 {[%emt 0:00:18]} Rba8 {[%emt 0:05:34]} 29. Nd4 {[%emt 0:03:15]} Bxd4 {
[%emt 0:00:51]} 30. exd4 {[%emt 0:02:53]} e3 {[%emt 0:04:47]} 31. Re2 {[%emt 0:
00:00]} exf2+ {[%emt 0:00:23]} 32. Kxf2 {[%emt 0:00:20]} Qh4+ {[%emt 0:01:50]}
33. Kg1 {[%emt 0:02:30]} Qg3 {[%emt 0:00:16]} 34. Qd3 {[%emt 0:00:26]} Rxc3 {
[%emt 0:01:15]} 35. Qxg3 {[%emt 0:00:43]} Rxg3 {[%emt 0:00:04]} 36. Rc2 {
[%emt 0:00:12]} Ra4 {[%emt 0:01:22]} 37. Rb2 {[%emt 0:00:53]} Re3 {[%emt 0:00:
00]} 38. Rc1 {[%emt 0:00:34]} Re6 {[%emt 0:00:56]} 39. Rc5 {[%emt 0:00:27]} Kf8
{[%emt 0:00:28]} 40. Ra5 {[%emt 0:00:08]} Rxa5 {[%emt 0:00:43]} 41. bxa5 {
[%emt 0:30:01]} Re1+ {[%emt 0:31:21]} 42. Kf2 {[%emt 0:00:03]} Ra1 {[%emt 0:00:
00]} 43. Rb6 {[%emt 0:00:16]} Rxa5 {[%emt 0:01:09]} 44. Rxc6 {[%emt 0:00:11]}
Ke7 {[%emt 0:00:00]} 45. Kf3 {[%emt 0:00:00]} Ra3+ {[%emt 0:00:00]} 46. Kf4 {
[%emt 0:00:00]} Kd7 {[%emt 0:00:00]} 47. Rb6 {[%emt 0:00:00]} Kc7 {[%emt 0:00:
00]} 48. Rb2 {[%emt 0:00:00]} f6 {[%emt 0:00:00]} 49. h4 {[%emt 0:00:00]} Ra4 {
[%emt 0:00:00]} 50. Ke3 {[%emt 0:00:00]} Ra3+ {[%emt 0:00:00]} 51. Kf4 {
[%emt 0:00:00]} Rd3 {[%emt 0:00:00]} 52. Rb4 {[%emt 0:00:00]} Rc3 {[%emt 0:00:
00]} 53. Rb2 {[%emt 0:00:00]} Rc4 {[%emt 0:00:00]} 54. Ke3 {[%emt 0:00:00]} Kd6
{[%emt 0:00:00]} 55. Rb7 {[%emt 0:00:00]} Rc7 {[%emt 0:00:00]} 56. Rb6+ {
[%emt 0:00:00]} Ke7 {[%emt 0:00:34]} 57. g4 {[%emt 0:00:00]} Rd7 {[%emt 0:00:
00]} 58. Kf4 {[%emt 0:00:00]} Kf7 {[%emt 0:02:59]} 59. Ra6 {[%emt 0:00:00]} Re7
{[%emt 0:00:29]} 60. Ra5 {[%emt 0:00:00]} Re4+ {[%emt 0:00:17]} 61. Kf3 {
[%emt 0:00:00]} Rxd4 {[%emt 0:00:03]} 62. Ra7+ {[%emt 0:00:00]} Kg8 {[%emt 0:
00:00]} 63. Rd7 {[%emt 0:00:00]} Kh7 {[%emt 0:01:19]} 64. Rd8 {[%emt 0:01:43]}
Rd3+ {[%emt 0:01:34]} 65. Kf4 {[%emt 0:00:00]} Rd4+ {[%emt 0:00:05]} 66. Kf3 {
[%emt 0:00:00]} Rd1 {[%emt 0:01:09]} 67. Rd7 {[%emt 0:00:00]} Kg8 {[%emt 0:00:
00]} 68. Rd8+ {[%emt 0:00:00]} Kf7 {[%emt 0:00:31]} 69. Rd7+ {[%emt 0:00:00]}
Kf8 {[%emt 0:00:03]} 70. Rd8+ {[%emt 0:00:00]} Ke7 {[%emt 0:00:25]} 71. Rg8 {
[%emt 0:00:00]} Kf7 {[%emt 0:00:37]} 72. Rd8 {[%emt 0:00:00]} d4 {[%emt 0:00:
00]} 73. Rd7+ {[%emt 0:00:00]} Kg8 {[%emt 0:00:24]} 74. Rd8+ {[%emt 0:00:00]}
Kh7 {[%emt 0:00:07]} 75. Rd5 {[%emt 0:00:00]} d3 {[%emt 0:00:40]} 76. Kg2 {
[%emt 0:00:00]} Kg8 {[%emt 0:01:29]} 77. Rd4 {[%emt 0:00:00]} Kf7 {[%emt 0:00:
00]} 78. Kf2 {[%emt 0:00:00]} Rh1 {[%emt 0:00:29]} 79. Kg3 {[%emt 0:00:00]} Rd1
{[%emt 0:00:35]} 80. Kf2 {[%emt 0:00:00]} d2 {[%emt 0:00:34]} 81. Ke2 {[%emt 0:
00:00]} Rh1 {[%emt 0:00:25]} 82. Rxd2 {[%emt 0:00:00]} Rh2+ {[%emt 0:00:40]}
83. Ke3 {[%emt 0:00:00]} Rxd2 {[%emt 0:01:13]} 84. Kxd2 {[%emt 0:00:00]} f5 {
[%emt 0:00:27]} 85. Ke3 {[%emt 0:00:00]} Ke6 {[%emt 0:00:41]} 86. Kf4 {[%emt 0:
00:00]} Kf6 {[%emt 0:00:20]} 87. gxf5 {[%emt 0:00:00]} gxf5 {[%emt 0:00:06]}
88. h5 {[%emt 0:00:00]} Ke6 {[%emt 0:00:56]} 89. Kg5 {[%emt 0:00:00]} Ke5 {
[%emt 0:00:28]} 90. Kg6 {[%emt 0:00:00]} f4 {[%emt 0:00:04]} 91. Kxg7 {[%emt 0:
00:00]} f3 {[%emt 0:00:06]} 92. h6 {[%emt 0:00:00]} f2 {[%emt 0:00:03]} 93. h7
{[%emt 0:00:00]} f1=Q {[%emt 0:00:08]} 0-1

[Event "44th Chess Olympiad Open 2022"]
[Site "Chennai"]
[Date "2022.08.02"]
[Round "5.75"]
[White "Al Thebaiti Ahmed M"]
[Black "Ebosse Kingue Victor Patrick"]
[Result "0-1"]
[WhiteElo "1966"]
[BlackElo "2054"]
[Annotator "NA RC"]
[PlyCount "74"]
[EventDate "2022.??.??"]
[TimeControl "60"]

1. d4 {[%emt 0:00:03]} Nf6 {[%emt 0:00:28]} 2. Nf3 {[%emt 0:00:11]} g6 {
[%emt 0:00:38]} 3. Bf4 {[%emt 0:00:24]} c5 {[%emt 0:00:42]} 4. d5 {[%emt 0:00:
00]} d6 {[%emt 0:01:16]} 5. Nc3 {[%emt 0:03:09]} Bg7 {[%emt 0:02:40]} 6. e4 {
[%emt 0:05:17]} a6 {[%emt 0:01:11]} 7. a4 {[%emt 0:01:16]} O-O {[%emt 0:00:40]}
8. Be2 {[%emt 0:02:34]} Qa5 {[%emt 0:03:57]} 9. O-O {[%emt 0:04:08]} Qb4 {
[%emt 0:01:35]} 10. Qd3 {[%emt 0:22:54]} Bd7 {[%emt 0:07:25]} 11. Ra3 {[%emt 0:
00:00]} Qa5 {[%emt 0:06:41]} 12. Nd2 {[%emt 0:02:30]} Ra7 {[%emt 0:11:02]} 13.
Qg3 {[%emt 0:06:07]} Qd8 {[%emt 0:08:11]} 14. a5 {[%emt 0:01:42]} Bb5 {[%emt 0:
00:00]} 15. Nxb5 {[%emt 0:02:24]} axb5 {[%emt 0:00:16]} 16. Rfa1 {[%emt 0:00:
00]} Nbd7 {[%emt 0:03:35]} 17. Be3 {[%emt 0:01:40]} Ne8 {[%emt 0:05:11]} 18.
R1a2 {[%emt 0:05:33]} b4 {[%emt 0:02:18]} 19. Ra4 {[%emt 0:00:19]} Nc7 {
[%emt 0:00:47]} 20. h4 {[%emt 0:01:37]} h5 {[%emt 0:04:18]} 21. Nc4 {[%emt 0:
00:00]} Nf6 {[%emt 0:01:05]} 22. Nd2 {[%emt 0:02:41]} Qd7 {[%emt 0:00:55]} 23.
Rxb4 {[%emt 0:02:28]} Rxa5 {[%emt 0:05:20]} 24. Rxa5 {[%emt 0:00:07]} cxb4 {
[%emt 0:00:10]} 25. Bb6 {[%emt 0:00:44]} Bh6 {[%emt 0:05:20]} 26. Qd3 {[%emt 0:
00:00]} Rc8 {[%emt 0:04:32]} 27. Nc4 {[%emt 0:01:14]} Na6 {[%emt 0:04:47]} 28.
Bd4 {[%emt 0:01:22]} Qd8 {[%emt 0:03:33]} 29. Bxf6 {[%emt 0:02:13]} exf6 {
[%emt 0:00:03]} 30. Rb5 {[%emt 0:00:30]} Nc5 {[%emt 0:01:06]} 31. Qf3 {[%emt 0:
00:00]} Qe7 {[%emt 0:04:13]} 32. Bd3 {[%emt 0:01:47]} Ra8 {[%emt 0:00:10]} 33.
Rxb4 {[%emt 0:00:33]} Ra1+ {[%emt 0:00:06]} 34. Kh2 {[%emt 0:00:14]} f5 {
[%emt 0:00:07]} 35. exf5 {[%emt 0:01:53]} Qxh4+ {[%emt 0:00:49]} 36. Qh3 {
[%emt 0:01:13]} Bf4+ {[%emt 0:00:10]} 37. g3 {[%emt 0:00:11]} Rh1+ {[%emt 0:00:
00]} 0-1

[Event "44th Chess Olympiad Open 2022"]
[Site "Chennai"]
[Date "2022.08.02"]
[Round "5.75"]
[White "Zebaze Dongmo Loic Dylane"]
[Black "Alharthi, Ahmed Mohammed A"]
[Result "0-1"]
[WhiteElo "1837"]
[BlackElo "1935"]
[Annotator "NA RC"]
[PlyCount "35"]
[EventDate "2022.??.??"]
[TimeControl "60"]

1. d4 {[%emt 0:00:08]} Nf6 {[%emt 0:00:10]} 2. Bf4 {[%emt 0:00:10]} c5 {
[%emt 0:00:12]} 3. c3 {[%emt 0:00:31]} Qb6 {[%emt 0:00:16]} 4. Qb3 {[%emt 0:00:
00]} Qxb3 {[%emt 0:00:45]} 5. axb3 {[%emt 0:00:04]} cxd4 {[%emt 0:00:25]} 6.
Bxb8 {[%emt 0:00:09]} Rxb8 {[%emt 0:00:24]} 7. Rxa7 {[%emt 0:00:16]} e5 {
[%emt 0:01:44]} 8. Nf3 {[%emt 0:02:00]} Bc5 {[%emt 0:08:02]} 9. Ra1 {[%emt 0:
00:00]} d6 {[%emt 0:05:10]} 10. b4 {[%emt 0:01:22]} Bb6 {[%emt 0:00:41]} 11.
Nbd2 {[%emt 0:05:38]} Be6 {[%emt 0:02:10]} 12. g3 {[%emt 0:09:41]} Ng4 {
[%emt 0:10:50]} 13. Ne4 {[%emt 0:01:35]} dxc3 {[%emt 0:00:31]} 14. bxc3 {
[%emt 0:01:09]} f5 {[%emt 0:01:56]} 15. Nxd6+ {[%emt 0:30:25]} Ke7 {[%emt 0:00:
00]} 16. Bg2 {[%emt 0:01:22]} Rhd8 {[%emt 0:02:51]} 17. Nb5 {[%emt 0:13:22]}
Be3 {[%emt 0:28:05]} 18. Rd1 {[%emt 0:00:00]} 0-1

[Event "44th Chess Olympiad Open 2022"]
[Site "Chennai"]
[Date "2022.08.02"]
[Round "5.76"]
[White "Nor, Mohamed Ahmed"]
[Black "da Conceicao, Marcos"]
[Result "1-0"]
[WhiteElo "1907"]
[BlackElo "1713"]
[Annotator "NA RC"]
[PlyCount "89"]
[EventDate "2022.??.??"]
[TimeControl "60"]

1. e4 {[%emt 0:00:04]} c5 {[%emt 0:03:05]} 2. Nf3 {[%emt 0:00:16]} Nc6 {
[%emt 0:00:45]} 3. d4 {[%emt 0:00:26]} cxd4 {[%emt 0:00:53]} 4. Nxd4 {[%emt 0:
00:00]} e5 {[%emt 0:01:05]} 5. Nf3 {[%emt 0:01:08]} Be7 {[%emt 0:01:17]} 6. Bc4
{[%emt 0:00:21]} Nf6 {[%emt 0:00:26]} 7. Nc3 {[%emt 0:00:17]} O-O {[%emt 0:00:
00]} 8. O-O {[%emt 0:00:00]} d6 {[%emt 0:02:12]} 9. h3 {[%emt 0:00:40]} a6 {
[%emt 0:01:50]} 10. a4 {[%emt 0:00:42]} Bd7 {[%emt 0:01:44]} 11. Re1 {[%emt 0:
00:00]} Rc8 {[%emt 0:00:45]} 12. Bg5 {[%emt 0:01:22]} h6 {[%emt 0:02:53]} 13.
Bxf6 {[%emt 0:00:35]} Bxf6 {[%emt 0:00:39]} 14. Qxd6 {[%emt 0:00:31]} Nd4 {
[%emt 0:01:13]} 15. Bb3 {[%emt 0:06:20]} Nxf3+ {[%emt 0:00:22]} 16. gxf3 {
[%emt 0:00:19]} Bxh3 {[%emt 0:01:07]} 17. Qxd8 {[%emt 0:00:01]} Rfxd8 {[%emt 0:
00:00]} 18. Rad1 {[%emt 0:00:02]} Be6 {[%emt 0:08:18]} 19. Rxd8+ {[%emt 0:00:
00]} Rxd8 {[%emt 0:00:18]} 20. Nd5 {[%emt 0:00:50]} Bg5 {[%emt 0:00:57]} 21. c4
{[%emt 0:01:39]} Kh7 {[%emt 0:01:45]} 22. Bc2 {[%emt 0:02:08]} h5 {[%emt 0:00:
00]} 23. Rd1 {[%emt 0:01:26]} Kh6 {[%emt 0:01:19]} 24. b4 {[%emt 0:00:45]} Rd6
{[%emt 0:04:48]} 25. c5 {[%emt 0:01:53]} Rc6 {[%emt 0:00:18]} 26. Ne3 {[%emt 0:
00:00]} Rc8 {[%emt 0:08:38]} 27. Rd6 {[%emt 0:00:57]} Bxe3 {[%emt 0:03:50]} 28.
fxe3 {[%emt 0:00:32]} Kg5 {[%emt 0:01:00]} 29. Kh2 {[%emt 0:02:51]} Kh4 {
[%emt 0:04:53]} 30. f4 {[%emt 0:03:37]} exf4 {[%emt 0:00:18]} 31. exf4 {
[%emt 0:00:23]} g6 {[%emt 0:01:29]} 32. Bd1 {[%emt 0:01:06]} Bg4 {[%emt 0:00:
00]} 33. Bb3 {[%emt 0:00:58]} Rf8 {[%emt 0:01:03]} 34. Bd5 {[%emt 0:00:41]} Bc8
{[%emt 0:03:54]} 35. b5 {[%emt 0:03:56]} axb5 {[%emt 0:00:25]} 36. axb5 {
[%emt 0:00:24]} Kg4 {[%emt 0:00:14]} 37. Rf6 {[%emt 0:00:25]} g5 {[%emt 0:00:
00]} 38. Bxf7 {[%emt 0:01:41]} Kh4 {[%emt 0:02:34]} 39. fxg5 {[%emt 0:03:07]}
Kxg5 {[%emt 0:01:05]} 40. e5 {[%emt 0:00:24]} Bd7 {[%emt 0:01:31]} 41. b6 {
[%emt 0:34:05]} Rc8 {[%emt 0:32:59]} 42. Rg6+ {[%emt 0:02:46]} Kf5 {[%emt 0:00:
00]} 43. e6 {[%emt 0:00:39]} Be8 {[%emt 0:06:51]} 44. Rg8 {[%emt 0:01:27]} Bxf7
{[%emt 0:01:23]} 45. exf7 {[%emt 0:00:43]} 1-0

[Event "44th Chess Olympiad Open 2022"]
[Site "Chennai"]
[Date "2022.08.02"]
[Round "5.76"]
[White "Islam Sh.Nour, Kassim"]
[Black "Guterres, Cosme"]
[Result "1-0"]
[WhiteElo "1873"]
[BlackElo "1692"]
[Annotator "NA RC"]
[PlyCount "111"]
[EventDate "2022.??.??"]
[TimeControl "60"]

1. b3 {[%emt 0:00:04]} d5 {[%emt 0:00:05]} 2. Bb2 {[%emt 0:00:05]} Nc6 {
[%emt 0:00:28]} 3. e3 {[%emt 0:00:06]} e5 {[%emt 0:00:24]} 4. Bb5 {[%emt 0:00:
00]} Bd6 {[%emt 0:00:44]} 5. Nf3 {[%emt 0:00:19]} Qe7 {[%emt 0:00:34]} 6. c4 {
[%emt 0:00:17]} dxc4 {[%emt 0:00:53]} 7. Bxc6+ {[%emt 0:00:10]} bxc6 {[%emt 0:
00:00]} 8. bxc4 {[%emt 0:00:26]} Nf6 {[%emt 0:00:25]} 9. c5 {[%emt 0:01:02]}
Bxc5 {[%emt 0:00:30]} 10. Nxe5 {[%emt 0:00:06]} Bd7 {[%emt 0:00:53]} 11. Qc2 {
[%emt 0:00:32]} O-O {[%emt 0:02:11]} 12. O-O {[%emt 0:00:52]} Rfc8 {[%emt 0:00:
00]} 13. d4 {[%emt 0:00:18]} Bb6 {[%emt 0:00:43]} 14. Nxc6 {[%emt 0:00:20]} Qe8
{[%emt 0:00:48]} 15. Ne5 {[%emt 0:00:25]} Ba4 {[%emt 0:01:24]} 16. Qc1 {
[%emt 0:00:43]} c5 {[%emt 0:00:44]} 17. Qd2 {[%emt 0:05:27]} cxd4 {[%emt 0:00:
00]} 18. exd4 {[%emt 0:00:18]} Nd5 {[%emt 0:03:53]} 19. Na3 {[%emt 0:03:15]} f6
{[%emt 0:01:17]} 20. Nec4 {[%emt 0:00:56]} Bc7 {[%emt 0:01:52]} 21. Qe1 {
[%emt 0:06:09]} Qf7 {[%emt 0:01:17]} 22. Qe4 {[%emt 0:05:20]} Re8 {[%emt 0:00:
00]} 23. Qh4 {[%emt 0:03:46]} Bd7 {[%emt 0:00:46]} 24. Rfe1 {[%emt 0:01:13]}
Qg6 {[%emt 0:01:30]} 25. Ne3 {[%emt 0:03:59]} Re4 {[%emt 0:01:00]} 26. Nxd5 {
[%emt 0:01:45]} Rxh4 {[%emt 0:00:49]} 27. Ne7+ {[%emt 0:00:14]} Kf7 {[%emt 0:
00:00]} 28. Nxg6 {[%emt 0:00:13]} hxg6 {[%emt 0:01:38]} 29. h3 {[%emt 0:00:43]}
Bxh3 {[%emt 0:01:02]} 30. gxh3 {[%emt 0:00:20]} Rxh3 {[%emt 0:00:33]} 31. Nb5 {
[%emt 0:01:02]} Bf4 {[%emt 0:01:08]} 32. Bc1 {[%emt 0:02:49]} g5 {[%emt 0:00:
00]} 33. Bxf4 {[%emt 0:00:24]} gxf4 {[%emt 0:00:31]} 34. Nd6+ {[%emt 0:00:16]}
Kg6 {[%emt 0:02:02]} 35. Re8 {[%emt 0:00:44]} Rxe8 {[%emt 0:00:45]} 36. Nxe8 {
[%emt 0:00:06]} Kf7 {[%emt 0:00:28]} 37. Nd6+ {[%emt 0:00:12]} Ke6 {[%emt 0:00:
00]} 38. Nb5 {[%emt 0:00:11]} Rd3 {[%emt 0:01:34]} 39. Nxa7 {[%emt 0:00:18]}
Rxd4 {[%emt 0:00:24]} 40. Nb5 {[%emt 0:00:11]} Rb4 {[%emt 0:01:35]} 41. a4 {
[%emt 0:37:24]} g5 {[%emt 0:30:28]} 42. Nc3 {[%emt 0:00:28]} Rc4 {[%emt 0:00:
00]} 43. Ne2 {[%emt 0:00:21]} Ke5 {[%emt 0:01:47]} 44. a5 {[%emt 0:00:13]} Ke4
{[%emt 0:00:52]} 45. a6 {[%emt 0:00:17]} Rc8 {[%emt 0:00:37]} 46. a7 {[%emt 0:
00:00]} Ra8 {[%emt 0:00:31]} 47. Nc3+ {[%emt 0:00:17]} Ke5 {[%emt 0:00:51]} 48.
Nb5 {[%emt 0:00:11]} Kf5 {[%emt 0:00:41]} 49. Nc7 {[%emt 0:00:18]} Rh8 {
[%emt 0:00:22]} 50. a8=Q {[%emt 0:00:13]} Rxa8 {[%emt 0:00:21]} 51. Rxa8 {
[%emt 0:00:07]} g4 {[%emt 0:00:23]} 52. Ra5+ {[%emt 0:00:19]} Kg6 {[%emt 0:00:
00]} 53. Ne6 {[%emt 0:00:19]} f3 {[%emt 0:00:33]} 54. Nf4+ {[%emt 0:00:11]} Kh6
{[%emt 0:00:31]} 55. Kh2 {[%emt 0:00:12]} Kg7 {[%emt 0:00:23]} 56. Kg3 {
[%emt 0:00:08]} 1-0

[Event "44th Chess Olympiad Open 2022"]
[Site "Chennai"]
[Date "2022.08.02"]
[Round "5.76"]
[White "de Araujo, Helder"]
[Black "Abdulkadir Mohamed Warsame"]
[Result "0-1"]
[WhiteElo "1742"]
[BlackElo "1820"]
[Annotator "NA RC"]
[PlyCount "108"]
[EventDate "2022.??.??"]
[TimeControl "60"]

1. d4 {[%emt 0:02:32]} Nf6 {[%emt 0:00:17]} 2. c4 {[%emt 0:00:16]} g6 {[%emt 0:
00:00]} 3. Nc3 {[%emt 0:00:16]} d5 {[%emt 0:00:13]} 4. cxd5 {[%emt 0:02:07]}
Nxd5 {[%emt 0:00:11]} 5. e4 {[%emt 0:00:20]} Nxc3 {[%emt 0:00:06]} 6. bxc3 {
[%emt 0:00:23]} Bg7 {[%emt 0:00:11]} 7. Bc4 {[%emt 0:01:30]} c5 {[%emt 0:00:13]
} 8. Ne2 {[%emt 0:00:48]} Nc6 {[%emt 0:00:23]} 9. Be3 {[%emt 0:01:08]} O-O {
[%emt 0:05:37]} 10. O-O {[%emt 0:00:48]} cxd4 {[%emt 0:00:33]} 11. cxd4 {
[%emt 0:01:29]} Na5 {[%emt 0:00:41]} 12. Bd3 {[%emt 0:03:15]} b6 {[%emt 0:00:
00]} 13. Rc1 {[%emt 0:01:16]} Bb7 {[%emt 0:02:50]} 14. Qd2 {[%emt 0:03:38]} Qd7
{[%emt 0:03:31]} 15. Bh6 {[%emt 0:04:22]} Rac8 {[%emt 0:04:52]} 16. Bxg7 {
[%emt 0:03:16]} Kxg7 {[%emt 0:00:22]} 17. Qb2 {[%emt 0:03:17]} f6 {[%emt 0:00:
00]} 18. f3 {[%emt 0:04:49]} Rxc1 {[%emt 0:01:19]} 19. Rxc1 {[%emt 0:01:01]}
Rc8 {[%emt 0:01:16]} 20. Rxc8 {[%emt 0:02:53]} Qxc8 {[%emt 0:01:08]} 21. Qc3 {
[%emt 0:03:09]} Qxc3 {[%emt 0:13:35]} 22. Nxc3 {[%emt 0:00:19]} Nc6 {[%emt 0:
00:00]} 23. d5 {[%emt 0:01:11]} Ne5 {[%emt 0:07:26]} 24. Be2 {[%emt 0:02:51]}
a6 {[%emt 0:02:01]} 25. Na4 {[%emt 0:02:17]} Nd7 {[%emt 0:00:13]} 26. Kf2 {
[%emt 0:00:39]} b5 {[%emt 0:07:21]} 27. Nc3 {[%emt 0:00:35]} Kf7 {[%emt 0:00:
00]} 28. Ke3 {[%emt 0:00:14]} e6 {[%emt 0:02:30]} 29. Kd4 {[%emt 0:01:26]} e5+
{[%emt 0:06:36]} 30. Ke3 {[%emt 0:03:11]} Nc5 {[%emt 0:00:15]} 31. Bd1 {
[%emt 0:02:06]} Ke7 {[%emt 0:04:31]} 32. a3 {[%emt 0:04:15]} Bc8 {[%emt 0:00:
00]} 33. f4 {[%emt 0:02:41]} exf4+ {[%emt 0:05:49]} 34. Kxf4 {[%emt 0:01:24]}
Nd3+ {[%emt 0:00:17]} 35. Ke3 {[%emt 0:01:12]} Ne5 {[%emt 0:00:37]} 36. Kd4 {
[%emt 0:00:49]} Kd6 {[%emt 0:00:26]} 37. Na2 {[%emt 0:02:20]} Nc4 {[%emt 0:00:
00]} 38. g4 {[%emt 0:10:05]} g5 {[%emt 0:01:46]} 39. Nb4 {[%emt 0:01:02]} Nxa3
{[%emt 0:01:49]} 40. Nd3 {[%emt 0:00:21]} Nc4 {[%emt 0:00:52]} 41. h3 {[%emt 0:
00:00]} Ne5 {[%emt 0:33:39]} 42. Nxe5 {[%emt 0:03:29]} fxe5+ {[%emt 0:00:19]}
43. Kc3 {[%emt 0:00:33]} Kc5 {[%emt 0:01:03]} 44. Kb3 {[%emt 0:00:21]} a5 {
[%emt 0:00:31]} 45. Bc2 {[%emt 0:00:29]} Bd7 {[%emt 0:00:22]} 46. Kb2 {[%emt 0:
00:00]} b4 {[%emt 0:00:55]} 47. Bd3 {[%emt 0:01:19]} a4 {[%emt 0:05:37]} 48.
Ba6 {[%emt 0:00:58]} Be8 {[%emt 0:01:58]} 49. Bc8 {[%emt 0:01:31]} Bb5 {
[%emt 0:00:42]} 50. Bf5 {[%emt 0:00:41]} h6 {[%emt 0:00:32]} 51. Be6 {[%emt 0:
00:00]} a3+ {[%emt 0:02:29]} 52. Kc2 {[%emt 0:07:48]} Bc4 {[%emt 0:02:32]} 53.
Bf7 {[%emt 0:01:24]} b3+ {[%emt 0:00:10]} 54. Kc3 {[%emt 0:01:20]} b2 {[%emt 0:
00:00]} 0-1

[Event "44th Chess Olympiad Open 2022"]
[Site "Chennai"]
[Date "2022.08.02"]
[Round "5.76"]
[White "dos Reis, Tito"]
[Black "Abdirahman Omar Sheikh"]
[Result "0-1"]
[WhiteElo "1658"]
[BlackElo "2051"]
[Annotator "NA RC"]
[PlyCount "106"]
[EventDate "2022.??.??"]
[TimeControl "60"]

1. f4 {[%emt 0:00:20]} d5 {[%emt 0:00:16]} 2. Nf3 {[%emt 0:00:11]} Nf6 {
[%emt 0:00:08]} 3. d4 {[%emt 0:00:18]} Bf5 {[%emt 0:04:11]} 4. e3 {[%emt 0:00:
00]} e6 {[%emt 0:00:15]} 5. Bd3 {[%emt 0:01:06]} c6 {[%emt 0:02:52]} 6. O-O {
[%emt 0:01:08]} Nbd7 {[%emt 0:00:52]} 7. c3 {[%emt 0:00:46]} Ne4 {[%emt 0:00:
00]} 8. Qe2 {[%emt 0:00:54]} Qb6 {[%emt 0:00:54]} 9. b4 {[%emt 0:02:59]} Be7 {
[%emt 0:01:03]} 10. a4 {[%emt 0:00:34]} a5 {[%emt 0:00:48]} 11. b5 {[%emt 0:00:
00]} O-O {[%emt 0:02:53]} 12. c4 {[%emt 0:06:16]} dxc4 {[%emt 0:09:35]} 13.
Bxc4 {[%emt 0:00:00]} cxb5 {[%emt 0:03:54]} 14. Bxb5 {[%emt 0:00:00]} Ndf6 {
[%emt 0:00:38]} 15. Ne5 {[%emt 0:00:00]} h5 {[%emt 0:01:42]} 16. Qe1 {[%emt 0:
00:00]} Bb4 {[%emt 0:00:30]} 17. Qd1 {[%emt 0:00:00]} Qd8 {[%emt 0:00:30]} 18.
Be2 {[%emt 0:00:00]} g6 {[%emt 0:07:30]} 19. Ba3 {[%emt 0:07:43]} Nd5 {[%emt 0:
00:00]} 20. Qb3 {[%emt 0:03:24]} Rc8 {[%emt 0:05:56]} 21. Nc4 {[%emt 0:02:46]}
Rc7 {[%emt 0:02:06]} 22. Bxb4 {[%emt 0:00:26]} axb4 {[%emt 0:00:30]} 23. Bf3 {
[%emt 0:04:46]} Rxc4 {[%emt 0:03:09]} 24. Bxe4 {[%emt 0:05:17]} Bxe4 {[%emt 0:
00:00]} 25. Qxc4 {[%emt 0:08:42]} Nxe3 {[%emt 0:01:04]} 26. Qxb4 {[%emt 0:00:
00]} Nxf1 {[%emt 0:00:33]} 27. Kxf1 {[%emt 0:00:46]} Qh4 {[%emt 0:00:26]} 28.
Nd2 {[%emt 0:04:19]} Qxf4+ {[%emt 0:05:32]} 29. Kg1 {[%emt 0:00:16]} Qe3+ {
[%emt 0:00:25]} 30. Kh1 {[%emt 0:00:53]} Rc8 {[%emt 0:03:43]} 31. Rg1 {[%emt 0:
00:00]} Bxg2+ {[%emt 0:01:32]} 32. Kxg2 {[%emt 0:00:46]} Rc2 {[%emt 0:00:15]}
33. Kh1 {[%emt 0:07:58]} Qxd2 {[%emt 0:04:21]} 34. Qd6 {[%emt 0:02:49]} Qe2 {
[%emt 0:10:04]} 35. Qf4 {[%emt 0:00:29]} Kg7 {[%emt 0:03:00]} 36. h4 {[%emt 0:
00:00]} Qf2 {[%emt 0:06:05]} 37. Qxf2 {[%emt 0:00:44]} Rxf2 {[%emt 0:00:09]}
38. Rb1 {[%emt 0:00:12]} Rf4 {[%emt 0:00:54]} 39. Rxb7 {[%emt 0:01:05]} Rxd4 {
[%emt 0:00:16]} 40. a5 {[%emt 0:00:29]} Rxh4+ {[%emt 0:00:08]} 41. Kg2 {
[%emt 0:30:13]} Ra4 {[%emt 0:30:09]} 42. Ra7 {[%emt 0:00:05]} Kf6 {[%emt 0:00:
00]} 43. a6 {[%emt 0:00:38]} g5 {[%emt 0:00:27]} 44. Ra8 {[%emt 0:00:09]} h4 {
[%emt 0:01:04]} 45. a7 {[%emt 0:00:18]} Ra3 {[%emt 0:00:43]} 46. Kh2 {[%emt 0:
00:00]} Kf5 {[%emt 0:01:20]} 47. Kg2 {[%emt 0:00:48]} Kf4 {[%emt 0:00:00]} 48.
Kh2 {[%emt 0:00:48]} e5 {[%emt 0:00:53]} 49. Kg2 {[%emt 0:00:29]} f5 {[%emt 0:
00:00]} 50. Kh2 {[%emt 0:02:39]} e4 {[%emt 0:00:24]} 51. Kg2 {[%emt 0:01:57]}
h3+ {[%emt 0:00:41]} 52. Kh2 {[%emt 0:01:16]} Ra2+ {[%emt 0:00:27]} 53. Kg1 {
[%emt 0:02:00]} h2+ {[%emt 0:00:43]} 0-1